Cogmind - Beta 10.2 @@@ ROGUE MODE // 2022.02.06 @ 23:20:23 Player: Conner Result: Destroyed by D-53 Grenadier with Mini Grenade Launcher Performance ------------- Evolutions (0) 0 Regions Visited (2) 400 Robots Destroyed (3) 15 Value Destroyed (90) 90 Prototype IDs (0) 0 Alien Tech Used (0) 0 Bonus (0) 0 TOTAL SCORE: 505 Bonus ------- None Cogmind --------- Core Integrity 0/250 Matter 40/300 Energy 124/125 System Corruption 0% Temperature Cool (0) Movement Rolling (110) Ox1 Location -10/Mines Parts ------- > --- POWER (1) -------- Light Ion Engine > --- PROPULSION (2) --- Compact Wheel > --- UTILITY (2) ------ Large Storage Unit ECM Suite > --- WEAPON (2) ------- (None) > --- INVENTORY (10) --- Light Ion Engine Light Ion Engine High-capacity Matter Pod (0) Seismic Analyzer Transport Network Coupler Welding Torch Peak State ------------ > --- POWER ------------ Ion Engine > --- PROPULSION ------- Wheel Wheel > --- UTILITY ---------- Large Storage Unit ECM Suite > --- WEAPON ----------- Grenade Launcher Grenade Launcher > --- INVENTORY -------- Light Ion Engine Light Ion Engine Light Ion Engine Wheel Compact Wheel Seismic Analyzer Small Laser Beam Cannon Grenade Launcher Welding Torch [Rating: 8] Favorites ----------- Power Ion Engine Engine Ion Engine Propulsion Wheel Wheel Wheel Utility Large Storage Unit Device ECM Suite Storage Large Storage Unit Weapon Grenade Launcher Energy Gun Small Laser Energy Cannon Beam Cannon Launcher Grenade Launcher Build | -11 -10 -10 ------- Run | Scr Mat Min Slots Evolved . | . . . Power . | . . . Propulsion . | . . . Utility . | . . . Weapon . | . . . Parts Attached 19 | 3 4 12 Power 5 | 1 . 4 Engine 5 | 1 . 4 Core . | . . . Reactor . | . . . Propulsion 5 | 2 . 3 Treads . | . . . Leg . | . . . Wheel 5 | 2 . 3 Hover . | . . . Flight . | . . . Utility 2 | . 2 . Device 1 | . 1 . Storage 1 | . 1 . Processor . | . . . Hackware . | . . . Protection . | . . . Artifact . | . . . Weapon 7 | . 2 5 Energy Gun 2 | . 1 1 Energy Cannon 1 | . . 1 Ballistic Gun . | . . . Ballistic Cannon . | . . . Launcher 4 | . 1 3 Special Weapon . | . . . Impact Weapon . | . . . Slashing Weapon . | . . . Piercing Weapon . | . . . Special Melee Weapon . | . . . Unidentified Prototypes . | . . . Parts Lost 11 | . . 11 Power 2 | . . 2 Propulsion 3 | . . 3 Utility . | . . . Weapon 6 | . . 6 Highest Loss Streak 9 | . . 9 Average Slot Usage (%) 77 | . 83 75 Engine 13 | . 14 13 Wheel 21 | . 28 19 Device 12 | . 8 14 Storage 12 | . 8 14 Energy Gun 3 | . 13 . Launcher 11 | . 11 12 Naked Turns . | . . . Heaviest Build 28 | 5 26 28 Greatest Support 26 | 26 26 26 Greatest Overweight (x) 1 | . . 1 Average Overweight (x) . | . . . Largest Inventory Capacity 10 | 4 10 10 Average Capacity 9 | 4 7 10 Most Carried 10 | 1 4 10 Average Carried 5 | . 2 6 Final Capacity 10 | 4 10 10 Final Carried 6 | 1 4 6 Class Distribution -------------------- 100% | Mutant Dominant Class ---------------- Mutant | -10/Materials Mutant | -10/Mines Resources | -11 -10 -10 ----------- Run | Scr Mat Min Matter Collected 240 | 210 . 30 Remotely . | . . . Salvage Created 20 | . . 20 Parts 2 | . . 2 Haulers Intercepted . | . . . Recyclers Shooed . | . . . Parts Field Recycled . | . . . Retrieved Matter . | . . . Parts Self-Destructed . | . . . Prevented . | . . . Kills | -11 -10 -10 ------- Run | Scr Mat Min Combat Hostiles Destroyed 14 | . . 14 AOE 14 | . . 14 Classes Destroyed 2 | . . 2 Swarmer 3 | . . 3 Assembled 11 | . . 11 Best Kill Streak 11 | . . 11 Combat Bots Only 11 | . . 11 Max Kills in Single Turn 5 | . . 5 Gunslinging . | . . . Exploded 5 | . . 5 Melee . | . . . Uniques/NPCs Destroyed . | . . . Combat | -11 -10 -10 -------- Run | Scr Mat Min Damage Taken 980 | . 28 952 Core 285 | . . 285 Absorbed by Shields . | . . . Core Remaining (%) 100 | 100 . . Volleys Fired 9 | . . 9 Largest 2 | . . 2 Hottest 60 | . . 60 Shots Fired 17 | . . 17 Gun . | . . . Cannon . | . . . Launcher 17 | . . 17 Special . | . . . Kinetic . | . . . Thermal . | . . . Explosive 17 | . . 17 Electromagnetic . | . . . Robot Hit Streak 9 | . . 9 Robot Miss Streak 1 | . . 1 Penetration Max . | . . . Secondary Targets . | . . . Shots Hit Robots 11 | . . 11 Core Hits 41 | . . 41 Critical Hits . | . . . Critical Kills . | . . . Critical Parts Destroyed . | . . . Melee Attacks . | . . . Impact . | . . . Slashing . | . . . Piercing . | . . . Sneak Attacks . | . . . Combat Hostiles . | . . . Follow-up Attacks . | . . . Damage Inflicted 1152 | . 2 1150 Guns . | . . . Cannons . | . . . Explosions 1150 | . . 1150 Melee . | . . . Ramming 2 | . 2 . Kinetic . | . . . Thermal . | . . . Explosive 1150 | . . 1150 Electromagnetic . | . . . Impact . | . . . Slashing . | . . . Piercing . | . . . Highest Corruption . | . . . Average Corruption . | . . . Corruption Purged . | . . . Overload Shots . | . . . Overflow Damage 8 | . . 8 Projectiles . | . . . Explosions 8 | . . 8 Melee . | . . . Knockbacks . | . . . Impact . | . . . Kinetic . | . . . Secondary . | . . . Self-Inflicted Damage 64 | . 1 63 Shots 4 | . . 4 Rammed 1 | . 1 . Targets Rammed 1 | . 1 . Kicked . | . . . Crushed . | . . . Highest Temperature 20 | . . 20 Average Temperature 17 | . . 17 Received Heat Transfer 20 | . . 20 Siege Activations . | . . . Robots Corrupted . | . . . Combat Hostiles . | . . . Parts Fried . | . . . Impact Corruptions . | . . . Robots Melted . | . . . Combat Hostiles . | . . . Parts Melted . | . . . Heat Transferred . | . . . Parts Sabotaged . | . . . Parts Stolen . | . . . Parts Stripped . | . . . Power Chain Reactions . | . . . Missiles Intercepted . | . . . Alert | -11 -10 -10 ------- Run | Scr Mat Min Peak Influence 108 | . 75 108 Initial 28 | . . 28 Average 33 | . 5 46 Maximum Alert Level . | . . . Low Security (%) 100 | 100 100 100 Level 1 . | . . . Level 2 . | . . . Level 3 . | . . . Level 4 . | . . . Level 5 . | . . . High Security . | . . . Max Security . | . . . Squads Dispatched 1 | . 1 . Investigation 1 | . 1 . Extermination . | . . . Reinforcement . | . . . Assault . | . . . Garrison . | . . . Intercept . | . . . Construction Impeded . | . . . Haulers Reinforced . | . . . Stealth | -11 -10 -10 --------- Run | Scr Mat Min Distress Signals . | . . . Communications Jammed . | . . . Distress Signals . | . . . Times Spotted 22 | . 3 19 Peak Tracking Total 13 | . 4 13 Tactical Retreats 1 | . . 1 Traps | -11 -10 -10 ------- Run | Scr Mat Min Traps Triggered . | . . . Indirectly . | . . . Trap Hack Attempts . | . . . Triggered . | . . . Disarmed . | . . . Reprogrammed . | . . . Reused . | . . . Traps Extracted . | . . . Installed . | . . . Triggered . | . . . Machines | -11 -10 -10 ---------- Run | Scr Mat Min Machines Disabled . | . . . Max in Single Turn . | . . . Machines Sabotaged 1 | . 1 . Garrisons Compromised . | . . . Overloaded Fab Kills . | . . . Fab Network Shutdowns . | . . . Hacking | -11 -10 -10 --------- Run | Scr Mat Min Machines Accessed 3 | . 3 . Terminals 3 | . 3 . Fabricators . | . . . Repair Stations . | . . . Recycling Units . | . . . Scanalyzers . | . . . Garrison Access . | . . . Total Hacks 9 | . 9 . Successful 7 | . 7 . Failed 2 | . 2 . Catastrophic . | . . . Database Lockouts . | . . . Manual 8 | . 8 . Terminals 9 | . 9 . Fabricators . | . . . Repair Stations . | . . . Recycling Units . | . . . Scanalyzers . | . . . Garrison Access . | . . . Terminal Hacks 2 | . 2 . Robot Analysis 1 | . 1 . Terminal Index 1 | . 1 . Fabricator Hacks . | . . . Repair Station Hacks . | . . . Recycling Unit Hacks . | . . . Scanalyzer . | . . . Garrison Access Hacks . | . . . Unauthorized Hacks 5 | . 5 . Terminals 5 | . 5 . Track 1 | . 1 . Botnet 3 | . 3 . Sabotage 1 | . 1 . Fabricators . | . . . Repair Stations . | . . . Recycling Units . | . . . Scanalyzers . | . . . Garrison Access . | . . . Data Cores Recovered . | . . . Used . | . . . Hacking Detections 2 | . 2 . Full Trace Events . | . . . Feedback Events . | . . . Feedback Blocked . | . . . Robot Schematics Acquired . | . . . Robots Built . | . . . Matter . | . . . Time . | . . . Total Robot Build Rating . | . . . Part Schematics Acquired . | . . . Parts Built . | . . . Matter . | . . . Time . | . . . Total Part Build Rating . | . . . Parts Repaired . | . . . Time . | . . . Parts Recycled . | . . . Recycled Matter . | . . . Retrieved Matter . | . . . Retrieved Components . | . . . Parts Scanalyzed . | . . . Part Schematics Acquired . | . . . Parts Damaged . | . . . Bothacking | -11 -10 -10 ------------ Run | Scr Mat Min Used RIF Installer . | . . . Robots Hacked . | . . . Non-combat . | . . . Combat . | . . . Robot Hacks Applied . | . . . Relay Couplers Released . | . . . Robots Rewired . | . . . Allies Hacked . | . . . Hacks Repelled . | . . . Allies | -11 -10 -10 -------- Run | Scr Mat Min Total Allies . | . . . Largest Group . | . . . Highest-Rated Group . | . . . Highest-Rated Ally . | . . . Total Orders . | . . . Ally Attacks . | . . . Total Damage . | . . . Kills . | . . . Allies Corrupted . | . . . Allies Melted . | . . . Intel | -11 -10 -10 ------- Run | Scr Mat Min Robot Analysis Total 1 | . 1 . Derelict Logs Recovered . | . . . Drone Launches . | . . . Drone Recoveries . | . . . Exploration | -11 -10 -10 ------------- Run | Scr Mat Min Turns Passed 540 | 29 143 368 Spaces Moved 490 | 27 148 315 Core 2 | 2 . . Treads . | . . . Legs . | . . . Wheels 488 | 25 148 315 Hover . | . . . Flight . | . . . Fastest Speed 50 | 50 90 90 Average Speed 97 | 88 90 101 Slowest Speed 110 | 100 90 110 Overloaded Moves . | . . . Propulsion Burnouts . | . . . Robots Hopped . | . . . Cave-ins Triggered . | . . . Exploration Rate (%) 32 | 3 38 57 Regions Visited 2 Branch Regions 1 Pre-discovered Areas 1 | . . 1 Known Exits Taken . | . . . Unknown Exits Taken 2 | 1 1 . Scrap Searched . | . . . Spaces Dug . | . . . Terrain Destroyed 98 | . . 98 Melee . | . . . Projectile . | . . . AOE 98 | . . 98 Terrain Rammed . | . . . Walls Destroyed . | . . . Machines Disabled . | . . . Actions | -11 -10 -10 --------- Run | Scr Mat Min Total 530 | 30 155 345 Wait 2 | . . 2 Move 489 | 26 148 315 Hop . | . . . Pick Up 11 | 1 3 7 Fast Attach 8 | 3 4 1 Attach 7 | . . 7 Detach . | . . . Swap 4 | . . 4 Drop . | . . . Fire 9 | . . 9 Melee . | . . . Ram . | . . . Kick . | . . . Crush . | . . . Escape Stasis . | . . . Rewire . | . . . Trap . | . . . Miscellaneous . | . . . Route ------- -11/Scrapyard -10/Materials -10/Mines History --------- Turn | Location | Event 11 | -11/Scrapyard | Discovered new exit (range 15) 30 | -11/Scrapyard | Entered Materials 159 | -10/Materials | Discovered new exit (range 11) 173 | -10/Materials | Entered Mines 174 | -10/Mines | Assembled infested the area 227 | -10/Mines | Destroyed 11 combat bots 302 | -10/Mines | Build established: Mutant 305 | -10/Mines | Learned location of Storage (-7) 346 | -10/Mines | Core integrity fell below 50% 352 | -10/Mines | Core integrity fell below 20% 379 | -10/Mines | Lost 9 parts (1p3n5w) 541 | -10/Mines | Destroyed by D-53 Grenadier with Mini Grenade Launcher Last Messages --------------- security following our previous successful raids." World map updated: -7/Storage. 00307_ 5O-U94(g): "We scattered so the Unaware couldn't effectively use their advantage in numbers, and I suggest you do the same." 00307_ 5O-U94(g) slips back into the shadows. 00335_ Grenade Launcher destroyed. 00337_ Wheel destroyed. 00342_ Grenade Launcher destroyed. 00342_ Ion Engine destroyed. 00344_ The unstable cave ceiling collapses. 00346_ Wheel destroyed. 00346_ Sml. Laser destroyed. 00348_ Beam Cannon destroyed. 00352_ The unstable cave ceiling collapses. 00362_ D-53 Grenadier destroyed. 00410_ K-01 Serf collects debris. 00469_ Acquired Transport Network Coupler. 00470_ K-01 Serf collects debris. 00473_ Acquired Hcp. Matter Pod. 00473_ K-01 Serf collects debris. Map ----- +----------------------------------------------------+ | ?????????????##### #?# #??????? | | ????????????## # # ### #??????? | | ????????????# #??????? | | ???????????## #??????? | | ??????????## ########??????? | | ??????????# ## # ###???????????? | | ??????????# ## ###### #?????????? | | ??????????## #####????## # ### #????????? | | ???????????# ##?????????# # ##### ##????????? | | ???????????# ###????????# ##???? #?????????? | | ???????????# #????????# # #????? #?????????? | | ???????????### #???????? #??????#?????????? | | ???####??????# #????????## ##????????????????? | | ??## ######## #????????? ##???????????????? | | ### ## #????????? ## #???????????????? | | #### ## #????????? # #????????????????? | | ##??# ## #????????? #??#####?????????? | | ##???# ## #????????### #### ##????????? | | ##???## ## ############ ## ###??????? | | # ##???# ##???#?? | | ## ##### ########## ##? #?? | | ?# #????????# ###d######## ## #?? | | ## ######????????# #?# #??????#### #?? | | ##?????????????# #?# #?????????### """ #?? | | ##??????????????# #?# #???????????## """ ##?? | | ###???????????????# #?#@#????????????## """ #??? | | #####?????????????# #?# #????????????## #??? | | #?????????????# #?# #???????###### ##??? | | #?????????????# #?# ##???? | | #### #?????????????# #?###??????######## ##????? | | ???# #????????????? #?????????????????# #?????? | | ???# #????????????? ?????????????????## #?????? | | ???# #????????????? ?????????????????# #?????? | | #??# #????????????? ?????####????????# ###???? | | #### #????????????? ????## ##??????# #???? | | #????????????? ????# #??????## ### # | | #????????????? ????# ##??????## # | | #####????????????? ????# ##??????# ###### | | ##??????????????????????## ###???## ##???? | | !##??????????????????????### ##??# #???? | | ##???????????????????????##### #??# #???? | | #???????????????????????????## #### ##??? | | # ##???????????????????????????# ## #??? | | ### #???????????????????????????# #??? | | ??## ##??????????????????????????## ##??? | | ???# ##??????????????????????????## #???? | | ???# #?????????????? ???????????# ##???? | | ???## ##????????????? ????????## # ##????? | | ????####?????????????# ?????# # ##????? | | ?????????????????????# % "#### #????? | +----------------------------------------------------+ Best States ------------- Heat Dissipation 25 Energy Generation 10 Energy Capacity 250 Matter Stores 280 Matter Capacity 300 Sight Range 16 Terrain Scan Density 10 ECM Strength 1 Evasion (%) 42 Item Schematics ----------------- None Robot Schematics ------------------ None Fabricated ------------ Nothing Alien Tech Used ----------------- None Achievements -------------- Brute Force Challenges ------------ None Game ------ Seed PhaseExplosiveClaws Manual? 0 Play Time 00:06:24 Cumulative 35.8 hours Start 2022.02.06 @ 23:16:26 End 2022.02.06 @ 23:20:23 Sessions 1 Manual Loads 0 Difficulty Rogue Special Mode None Game No. 61 Rogue 61 Adventurer 0 Explorer 0 Win Type - Total 0 Types 0/0/0/0/0/0/0/0/0 Lore% 48 Gallery% 45 Achievement% 38 Wizard Run 0 Options --------- ASCII 0 Keyboard 0 Movement Numpad Keybinds 0 Fullscreen 1 Font 24/Smallcaps Map View 76x50 Tactical HUD 1 Map Filters NONE Filters NONE Steam 1 RUN: 17a3ad7d-f28b-4157-8850-fe97a7dd8b1e